[Event "Early-Titled-Tuesday-Blitz-February-13-2024"]
[Site "Chess.com"]
[Date "2024.02.13"]
[Round "7"]
[White "Schachmalanders"]
[Black "Semetey"]
[Result "0-1"]
[WhiteElo "2463"]
[BlackElo "2648"]
[TimeControl "180+1"]
[EndTime "9:21:52 PST"]
[Termination "Semetey won by resignation"]

1. e4 {[%clk 0:03:00.9]} 1... c5 {[%clk 0:02:54.1]} 2. Nc3 {[%clk 0:03:00.5]}
2... d6 {[%clk 0:02:41.9]} 3. g3 {[%clk 0:02:56.4]} 3... g6 {[%clk 0:02:41.5]}
4. Bg2 {[%clk 0:02:56.4]} 4... Bg7 {[%clk 0:02:42.1]} 5. Nge2 {[%clk 0:02:56.8]}
5... Nc6 {[%clk 0:02:42.4]} 6. d3 {[%clk 0:02:57.1]} 6... e5 {[%clk 0:02:38.3]}
7. Be3 {[%clk 0:02:56.8]} 7... Nge7 {[%clk 0:02:37.2]} 8. Qd2 {[%clk 0:02:57]}
8... Nd4 {[%clk 0:02:36]} 9. O-O-O {[%clk 0:02:55.8]} 9... Be6 {[%clk 0:02:33]}
10. Bh6 {[%clk 0:02:55.1]} 10... O-O {[%clk 0:02:30.4]} 11. h4 {[%clk
0:02:53.6]} 11... f6 {[%clk 0:02:26.4]} 12. Bxg7 {[%clk 0:02:51.6]} 12... Kxg7
{[%clk 0:02:26.3]} 13. h5 {[%clk 0:02:52.3]} 13... g5 {[%clk 0:02:26.6]} 14. h6+
{[%clk 0:02:51.5]} 14... Kh8 {[%clk 0:02:26.2]} 15. f4 {[%clk 0:02:52]} 15...
gxf4 {[%clk 0:02:25.1]} 16. gxf4 {[%clk 0:02:52.2]} 16... Rg8 {[%clk 0:02:22.6]}
17. Bh3 {[%clk 0:02:50.3]} 17... Bxh3 {[%clk 0:02:17.3]} 18. Rxh3 {[%clk
0:02:51.2]} 18... b5 {[%clk 0:02:14.3]} 19. Nxd4 {[%clk 0:02:44.8]} 19... cxd4
{[%clk 0:02:04.3]} 20. Nxb5 {[%clk 0:02:44.4]} 20... Qb6 {[%clk 0:02:03.3]} 21.
Na3 {[%clk 0:02:41.5]} 21... Rac8 {[%clk 0:01:33.1]} 22. Rhh1 {[%clk 0:02:37.4]}
22... Ng6 {[%clk 0:01:30.2]} 23. f5 {[%clk 0:02:27.2]} 23... Nf4 {[%clk
0:01:29.7]} 24. Rhg1 {[%clk 0:02:26.8]} 24... d5 {[%clk 0:01:13.9]} 25. exd5
{[%clk 0:02:24]} 25... Nxd5 {[%clk 0:01:13.3]} 26. Qf2 {[%clk 0:02:07.8]} 26...
Ne3 {[%clk 0:01:10.4]} 27. Rxg8+ {[%clk 0:02:07.7]} 27... Rxg8 {[%clk
0:01:08.5]} 28. Rg1 {[%clk 0:02:08.3]} 28... Qd8 {[%clk 0:00:52.4]} 29. Nc4
{[%clk 0:02:03.4]} 29... Rxg1+ {[%clk 0:00:36.6]} 30. Qxg1 {[%clk 0:02:02.7]}
30... Nxf5 {[%clk 0:00:37.2]} 31. Qh2 {[%clk 0:01:54.8]} 31... Qf8 {[%clk
0:00:32.6]} 32. Qg2 {[%clk 0:01:42.1]} 32... Qxh6+ {[%clk 0:00:30.1]} 33. Kb1
{[%clk 0:01:41.5]} 33... Qg6 {[%clk 0:00:21.4]} 34. Qa8+ {[%clk 0:01:40.3]}
34... Qg8 {[%clk 0:00:21.3]} 35. Qh1 {[%clk 0:01:37.4]} 35... Ng3 {[%clk
0:00:18]} 36. Qh4 {[%clk 0:01:31.5]} 36... Qg6 {[%clk 0:00:12.8]} 37. a4 {[%clk
0:01:27.4]} 37... h5 {[%clk 0:00:11.5]} 38. b4 {[%clk 0:01:26.2]} 38... Nf5
{[%clk 0:00:11.5]} 39. Qe4 {[%clk 0:01:23.8]} 39... h4 {[%clk 0:00:11.5]} 40.
Qa8+ {[%clk 0:01:23.9]} 40... Qg8 {[%clk 0:00:11.1]} 41. Qe4 {[%clk 0:01:23.4]}
41... Qe6 {[%clk 0:00:06.4]} 42. Qg4 {[%clk 0:01:19.1]} 42... Kh7 {[%clk
0:00:05.4]} 43. b5 {[%clk 0:01:14.8]} 43... Kh6 {[%clk 0:00:05.1]} 44. Kb2
{[%clk 0:01:12.5]} 44... Qd7 {[%clk 0:00:01.2]} 45. Nd2 {[%clk 0:01:08.1]} 45...
Qe6 {[%clk 0:00:01.6]} 46. Ne4 {[%clk 0:01:08.3]} 46... Ng7 {[%clk 0:00:02.2]}
47. Qxh4+ {[%clk 0:01:07.8]} 47... Kg6 {[%clk 0:00:02.6]} 48. Nd2 {[%clk
0:01:01.6]} 48... Qe7 {[%clk 0:00:03]} 49. Kb3 {[%clk 0:00:58.2]} 49... Qe6+
{[%clk 0:00:03]} 50. Nc4 {[%clk 0:00:58.8]} 50... Qe7 {[%clk 0:00:02.2]} 51. a5
{[%clk 0:00:55.1]} 51... Qc5 {[%clk 0:00:01.8]} 52. Ka4 {[%clk 0:00:50.8]} 52...
Ne6 {[%clk 0:00:01.6]} 53. Qg4+ {[%clk 0:00:49.8]} 53... Kf7 {[%clk 0:00:01.5]}
54. Qh5+ {[%clk 0:00:49.5]} 54... Ke7 {[%clk 0:00:02]} 55. Qh7+ {[%clk
0:00:49.7]} 55... Ke8 {[%clk 0:00:01.7]} 56. Qb7 {[%clk 0:00:39]} 56... Nc7
{[%clk 0:00:01.5]} 57. b6 {[%clk 0:00:31.5]} 57... Nd5 {[%clk 0:00:01.7]} 58.
Qb8+ {[%clk 0:00:29.5]} 58... Kf7 {[%clk 0:00:01.5]} 59. Nd6+ {[%clk 0:00:20.6]}
59... Ke6 {[%clk 0:00:01.2]} 60. Qc8+ {[%clk 0:00:17.1]} 60... Qxc8 {[%clk
0:00:01.1]} 61. Nxc8 {[%clk 0:00:16.5]} 61... axb6 {[%clk 0:00:02]} 62. a6
{[%clk 0:00:15.3]} 62... b5+ {[%clk 0:00:01.6]} 63. Kxb5 {[%clk 0:00:15.4]}
63... Kd7 {[%clk 0:00:02.5]} 64. a7 {[%clk 0:00:15.7]} 64... Nc7+ {[%clk
0:00:01.9]} 65. Kb6 {[%clk 0:00:16.3]} 65... Kxc8 {[%clk 0:00:02.8]} 66. Kc6
{[%clk 0:00:15.4]} 66... f5 {[%clk 0:00:03.1]} 67. Kd6 {[%clk 0:00:15]} 67... f4
{[%clk 0:00:03.9]} 68. Kxe5 {[%clk 0:00:14]} 68... f3 {[%clk 0:00:04.8]} 69.
Kxd4 {[%clk 0:00:14.9]} 69... f2 {[%clk 0:00:05.7]} 70. c4 {[%clk 0:00:15.2]}
70... f1=Q {[%clk 0:00:06.6]} 0-1

[Event "Early-Titled-Tuesday-Blitz-February-13-2024"]
[Site "Chess.com"]
[Date "2024.02.13"]
[Round "7"]
[White "Schattman"]
[Black "Lady_Nika"]
[Result "1-0"]
[WhiteElo "2406"]
[BlackElo "2583"]
[TimeControl "180+1"]
[EndTime "9:21:53 PST"]
[Termination "Schattman won on time"]

1. f4 {[%clk 0:02:57.4]} 1... d5 {[%clk 0:02:59.5]} 2. Nf3 {[%clk 0:02:52.3]}
2... e6 {[%clk 0:03:00.4]} 3. g3 {[%clk 0:02:49.3]} 3... f5 {[%clk 0:03:00.2]}
4. e3 {[%clk 0:02:44.7]} 4... Nf6 {[%clk 0:03:01.1]} 5. c4 {[%clk 0:02:44.1]}
5... c6 {[%clk 0:03:01.3]} 6. b3 {[%clk 0:02:43.2]} 6... Bd6 {[%clk 0:03:01.5]}
7. Bb2 {[%clk 0:02:43.3]} 7... O-O {[%clk 0:03:01.9]} 8. Nc3 {[%clk 0:02:43.2]}
8... Nbd7 {[%clk 0:03:02.3]} 9. Be2 {[%clk 0:02:40.4]} 9... Qe7 {[%clk
0:03:02.5]} 10. cxd5 {[%clk 0:02:40.2]} 10... exd5 {[%clk 0:03:02.5]} 11. O-O
{[%clk 0:02:38.2]} 11... Ne4 {[%clk 0:03:02.7]} 12. Nxe4 {[%clk 0:02:35.4]}
12... fxe4 {[%clk 0:03:01.6]} 13. Nd4 {[%clk 0:02:24.5]} 13... Nc5 {[%clk
0:03:01.5]} 14. Ba3 {[%clk 0:02:17.9]} 14... Bh3 {[%clk 0:03:00.2]} 15. Rf2
{[%clk 0:02:17.1]} 15... Nd3 {[%clk 0:02:52.5]} 16. Bxd6 {[%clk 0:02:07.8]}
16... Qxd6 {[%clk 0:02:52.6]} 17. Bxd3 {[%clk 0:02:02.6]} 17... exd3 {[%clk
0:02:52.7]} 18. Qh5 {[%clk 0:01:52.7]} 18... Bd7 {[%clk 0:02:48.4]} 19. Rc1
{[%clk 0:01:21.6]} 19... c5 {[%clk 0:02:45.2]} 20. Nf3 {[%clk 0:01:21.1]} 20...
Rf5 {[%clk 0:02:44.4]} 21. Qh4 {[%clk 0:01:21.2]} 21... b5 {[%clk 0:02:38]} 22.
Ne5 {[%clk 0:01:15.7]} 22... c4 {[%clk 0:02:19.9]} 23. bxc4 {[%clk 0:01:07.7]}
23... dxc4 {[%clk 0:02:18.9]} 24. Nxd7 {[%clk 0:01:04.8]} 24... Qxd7 {[%clk
0:02:18.7]} 25. Qg4 {[%clk 0:01:04.2]} 25... Re8 {[%clk 0:02:11.7]} 26. Qf3
{[%clk 0:01:02.8]} 26... Rc5 {[%clk 0:02:09.5]} 27. g4 {[%clk 0:01:01.1]} 27...
b4 {[%clk 0:02:08.8]} 28. f5 {[%clk 0:00:57.3]} 28... c3 {[%clk 0:02:08.5]} 29.
f6 {[%clk 0:00:56.4]} 29... gxf6 {[%clk 0:02:07.2]} 30. Qxf6 {[%clk 0:00:55.8]}
30... cxd2 {[%clk 0:02:03.1]} 31. Rcf1 {[%clk 0:00:45.7]} 31... Qe7 {[%clk
0:01:24.3]} 32. Qxe7 {[%clk 0:00:37]} 32... Rxe7 {[%clk 0:01:24.3]} 33. Rxd2
{[%clk 0:00:36.9]} 33... Rxe3 {[%clk 0:01:22.3]} 34. Rfd1 {[%clk 0:00:34.6]}
34... Rc3 {[%clk 0:01:04.5]} 35. Kf2 {[%clk 0:00:33.4]} 35... Rh3 {[%clk
0:01:03.4]} 36. Kg2 {[%clk 0:00:33.2]} 36... Rh4 {[%clk 0:00:56.7]} 37. Kg3
{[%clk 0:00:33.4]} 37... Rh6 {[%clk 0:00:51.3]} 38. Rxd3 {[%clk 0:00:33.1]}
38... Rhc6 {[%clk 0:00:45.8]} 39. Kh4 {[%clk 0:00:31.2]} 39... Rxd3 {[%clk
0:00:39.6]} 40. Rxd3 {[%clk 0:00:30]} 40... a5 {[%clk 0:00:39.9]} 41. a3 {[%clk
0:00:23.1]} 41... Rc3 {[%clk 0:00:29.7]} 42. Rd8+ {[%clk 0:00:21.8]} 42... Kf7
{[%clk 0:00:29.4]} 43. axb4 {[%clk 0:00:21.7]} 43... axb4 {[%clk 0:00:29.8]} 44.
Rb8 {[%clk 0:00:21.7]} 44... b3 {[%clk 0:00:28.9]} 45. Rb7+ {[%clk 0:00:21.6]}
45... Ke6 {[%clk 0:00:28.3]} 46. Rxh7 {[%clk 0:00:19]} 46... Rc2 {[%clk
0:00:20.6]} 47. h3 {[%clk 0:00:18.6]} 47... Kd5 {[%clk 0:00:18.9]} 48. Rb7
{[%clk 0:00:18.4]} 48... Kc4 {[%clk 0:00:18.5]} 49. Kg5 {[%clk 0:00:16.6]} 49...
Rd2 {[%clk 0:00:13.7]} 50. Kf4 {[%clk 0:00:15.7]} 50... b2 {[%clk 0:00:12.9]}
51. h4 {[%clk 0:00:15.3]} 51... Rh2 {[%clk 0:00:12.2]} 52. h5 {[%clk 0:00:14.8]}
52... Kc3 {[%clk 0:00:12.6]} 53. Kg5 {[%clk 0:00:14.5]} 53... Rh1 {[%clk
0:00:10.3]} 54. Kg6 {[%clk 0:00:12.9]} 54... b1=Q+ {[%clk 0:00:08.8]} 55. Rxb1
{[%clk 0:00:12.6]} 55... Rxb1 {[%clk 0:00:09.7]} 56. h6 {[%clk 0:00:12.9]} 56...
Kd4 {[%clk 0:00:10.2]} 57. h7 {[%clk 0:00:13.1]} 57... Rh1 {[%clk 0:00:05.9]}
58. Kg7 {[%clk 0:00:13]} 58... Ke5 {[%clk 0:00:06.1]} 59. g5 {[%clk 0:00:11.4]}
59... Kf5 {[%clk 0:00:06]} 60. g6 {[%clk 0:00:11.8]} 60... Kg5 {[%clk
0:00:06.3]} 61. Kf7 {[%clk 0:00:10.6]} 61... Rh2 {[%clk 0:00:02.8]} 62. Kg7
{[%clk 0:00:08.3]} 1-0

[Event "Early-Titled-Tuesday-Blitz-February-13-2024"]
[Site "Chess.com"]
[Date "2024.02.13"]
[Round "7"]
[White "FontVella8"]
[Black "ural58"]
[Result "1/2-1/2"]
[WhiteElo "2722"]
[BlackElo "2522"]
[TimeControl "180+1"]
[EndTime "9:21:54 PST"]
[Termination "Game drawn - insufficient material"]

1. Nf3 {[%clk 0:03:00.9]} 1... Nc6 {[%clk 0:02:57.9]} 2. d4 {[%clk 0:02:59.2]}
2... d5 {[%clk 0:02:57.7]} 3. Bf4 {[%clk 0:02:56.7]} 3... Bg4 {[%clk 0:02:57]}
4. e3 {[%clk 0:02:56.5]} 4... e6 {[%clk 0:02:57.2]} 5. Nbd2 {[%clk 0:02:56]}
5... Bd6 {[%clk 0:02:57.3]} 6. Bxd6 {[%clk 0:02:55.5]} 6... cxd6 {[%clk
0:02:57.4]} 7. a3 {[%clk 0:02:55.3]} 7... Nf6 {[%clk 0:02:55.1]} 8. Be2 {[%clk
0:02:54.4]} 8... O-O {[%clk 0:02:54.7]} 9. O-O {[%clk 0:02:54.8]} 9... Qc7
{[%clk 0:02:49.5]} 10. b4 {[%clk 0:02:54.5]} 10... Rfc8 {[%clk 0:02:48.3]} 11.
c4 {[%clk 0:02:52.9]} 11... dxc4 {[%clk 0:02:47.5]} 12. Nxc4 {[%clk 0:02:53.1]}
12... b5 {[%clk 0:02:46]} 13. Nb2 {[%clk 0:02:51]} 13... a5 {[%clk 0:02:42.3]}
14. Qb3 {[%clk 0:02:47.8]} 14... axb4 {[%clk 0:02:40.9]} 15. axb4 {[%clk
0:02:47.7]} 15... Nd5 {[%clk 0:02:21.4]} 16. Nd3 {[%clk 0:02:41.7]} 16... Ra4
{[%clk 0:02:15.3]} 17. Rfc1 {[%clk 0:02:28.9]} 17... Rca8 {[%clk 0:01:56.1]} 18.
Rxa4 {[%clk 0:02:19.9]} 18... bxa4 {[%clk 0:01:56.1]} 19. Qa3 {[%clk 0:02:16.9]}
19... Qb6 {[%clk 0:01:42.6]} 20. h3 {[%clk 0:02:14.2]} 20... Bh5 {[%clk
0:01:31.8]} 21. b5 {[%clk 0:02:02.9]} 21... Nce7 {[%clk 0:01:24.6]} 22. Nb2
{[%clk 0:01:44.9]} 22... Bxf3 {[%clk 0:01:22.4]} 23. gxf3 {[%clk 0:01:43.4]}
23... Qa5 {[%clk 0:01:15.4]} 24. Kf1 {[%clk 0:01:35.3]} 24... h6 {[%clk
0:01:11]} 25. Qxd6 {[%clk 0:01:28.1]} 25... a3 {[%clk 0:01:05.7]} 26. Nc4 {[%clk
0:01:28.4]} 26... Qb4 {[%clk 0:00:54.1]} 27. Qxb4 {[%clk 0:01:07.7]} 27... Nxb4
{[%clk 0:00:54]} 28. Ra1 {[%clk 0:00:58.2]} 28... a2 {[%clk 0:00:51.8]} 29. b6
{[%clk 0:00:56.8]} 29... Nec6 {[%clk 0:00:43.7]} 30. b7 {[%clk 0:00:56.4]} 30...
Rb8 {[%clk 0:00:42.3]} 31. Nd6 {[%clk 0:00:56.7]} 31... Na5 {[%clk 0:00:37.7]}
32. Bc4 {[%clk 0:00:19.4]} 32... Nxc4 {[%clk 0:00:36.2]} 33. Nxc4 {[%clk
0:00:19.4]} 33... Rxb7 {[%clk 0:00:36.8]} 34. Ke2 {[%clk 0:00:19.3]} 34... Rc7
{[%clk 0:00:35.3]} 35. Na3 {[%clk 0:00:11.3]} 35... Ra7 {[%clk 0:00:33.9]} 36.
Nb5 {[%clk 0:00:11.7]} 36... Ra5 {[%clk 0:00:33.6]} 37. Nc3 {[%clk 0:00:11.6]}
37... g5 {[%clk 0:00:24.6]} 38. Kd2 {[%clk 0:00:11.2]} 38... Kg7 {[%clk
0:00:24.2]} 39. e4 {[%clk 0:00:08.5]} 39... Kg6 {[%clk 0:00:24.2]} 40. Nd1
{[%clk 0:00:07]} 40... Kh5 {[%clk 0:00:20.8]} 41. Kc3 {[%clk 0:00:07.3]} 41...
Nc6 {[%clk 0:00:16]} 42. Ne3 {[%clk 0:00:06.1]} 42... Kh4 {[%clk 0:00:15.1]} 43.
d5 {[%clk 0:00:04.8]} 43... exd5 {[%clk 0:00:14.6]} 44. exd5 {[%clk 0:00:05.4]}
44... Ne5 {[%clk 0:00:14.4]} 45. d6 {[%clk 0:00:03.8]} 45... Ra6 {[%clk
0:00:13]} 46. Kd4 {[%clk 0:00:02.4]} 46... Nxf3+ {[%clk 0:00:12.3]} 47. Kd5
{[%clk 0:00:02.7]} 47... Nd2 {[%clk 0:00:12.2]} 48. d7 {[%clk 0:00:02.5]} 48...
Ra8 {[%clk 0:00:12.4]} 49. Rxa2 {[%clk 0:00:02.6]} 49... Rd8 {[%clk 0:00:12.1]}
50. Kd6 {[%clk 0:00:02.6]} 50... Ne4+ {[%clk 0:00:11.6]} 51. Ke7 {[%clk
0:00:03.1]} 51... Rxd7+ {[%clk 0:00:10.9]} 52. Kxd7 {[%clk 0:00:03.8]} 52...
Kxh3 {[%clk 0:00:09.7]} 53. Ke7 {[%clk 0:00:04.4]} 53... f6 {[%clk 0:00:09]} 54.
Kf7 {[%clk 0:00:04.5]} 54... h5 {[%clk 0:00:09.3]} 55. f3 {[%clk 0:00:03.8]}
55... Nc3 {[%clk 0:00:08]} 56. Rc2 {[%clk 0:00:03.6]} 56... Nb5 {[%clk
0:00:07.4]} 57. Kxf6 {[%clk 0:00:03.7]} 57... g4 {[%clk 0:00:07]} 58. fxg4
{[%clk 0:00:03.6]} 58... hxg4 {[%clk 0:00:07.7]} 59. Kg5 {[%clk 0:00:03.3]}
59... g3 {[%clk 0:00:07.4]} 60. Kf4 {[%clk 0:00:03.7]} 60... Nd4 {[%clk
0:00:07.3]} 61. Rg2 {[%clk 0:00:03.6]} 61... Ne6+ {[%clk 0:00:06.9]} 62. Ke5
{[%clk 0:00:03.8]} 62... Ng5 {[%clk 0:00:07]} 63. Rxg3+ {[%clk 0:00:04.2]} 63...
Kxg3 {[%clk 0:00:06.6]} 1/2-1/2

[Event "Early-Titled-Tuesday-Blitz-February-13-2024"]
[Site "Chess.com"]
[Date "2024.02.13"]
[Round "7"]
[White "chess_blitz00"]
[Black "SahibSinghKnight"]
[Result "1/2-1/2"]
[WhiteElo "2473"]
[BlackElo "2605"]
[TimeControl "180+1"]
[EndTime "9:22:11 PST"]
[Termination "Game drawn by stalemate"]

1. d3 {[%clk 0:03:00.9]} 1... e5 {[%clk 0:02:59.2]} 2. Nc3 {[%clk 0:02:58.4]}
2... d5 {[%clk 0:02:58.6]} 3. e4 {[%clk 0:02:58.2]} 3... d4 {[%clk 0:02:58.3]}
4. Nce2 {[%clk 0:02:58.1]} 4... c5 {[%clk 0:02:58.9]} 5. f4 {[%clk 0:02:57.2]}
5... Nc6 {[%clk 0:02:59.1]} 6. Nf3 {[%clk 0:02:56.3]} 6... Bd6 {[%clk
0:02:59.7]} 7. g3 {[%clk 0:02:55.9]} 7... f5 {[%clk 0:02:57.7]} 8. exf5 {[%clk
0:02:45.5]} 8... Bxf5 {[%clk 0:02:56.7]} 9. Bg2 {[%clk 0:02:46.2]} 9... e4
{[%clk 0:02:54.7]} 10. dxe4 {[%clk 0:02:43.5]} 10... Bxe4 {[%clk 0:02:54.4]} 11.
O-O {[%clk 0:02:42.6]} 11... Nf6 {[%clk 0:02:52.7]} 12. b3 {[%clk 0:02:10.7]}
12... O-O {[%clk 0:02:49.3]} 13. Bd2 {[%clk 0:02:00.7]} 13... Re8 {[%clk
0:02:34]} 14. Nc1 {[%clk 0:01:58]} 14... Qb6 {[%clk 0:02:23.1]} 15. Nd3 {[%clk
0:01:55.4]} 15... Qa6 {[%clk 0:02:15.1]} 16. Bc1 {[%clk 0:01:34.7]} 16... Nd5
{[%clk 0:02:12.5]} 17. Bd2 {[%clk 0:01:25.1]} 17... Rad8 {[%clk 0:02:08.8]} 18.
Re1 {[%clk 0:01:10.3]} 18... c4 {[%clk 0:01:44.3]} 19. bxc4 {[%clk 0:01:07.1]}
19... Ne3 {[%clk 0:01:44.4]} 20. Bxe3 {[%clk 0:00:47.2]} 20... dxe3 {[%clk
0:01:45.3]} 21. Qe2 {[%clk 0:00:26]} 21... Qxc4 {[%clk 0:01:40.6]} 22. Qxe3
{[%clk 0:00:06.1]} 22... Bxd3 {[%clk 0:01:37.8]} 23. cxd3 {[%clk 0:00:07]} 23...
Qf7 {[%clk 0:01:16.3]} 24. Qf2 {[%clk 0:00:06.8]} 24... h6 {[%clk 0:01:10.3]}
25. Kh1 {[%clk 0:00:06.8]} 25... Nb4 {[%clk 0:01:09.2]} 26. Rxe8+ {[%clk
0:00:06.9]} 26... Rxe8 {[%clk 0:01:09.4]} 27. Re1 {[%clk 0:00:07.1]} 27... Nxd3
{[%clk 0:01:08.5]} 28. Rxe8+ {[%clk 0:00:06.7]} 28... Qxe8 {[%clk 0:01:09.4]}
29. Qd2 {[%clk 0:00:05.8]} 29... Qb5 {[%clk 0:01:05.8]} 30. h4 {[%clk
0:00:05.4]} 30... Bb4 {[%clk 0:01:04.7]} 31. Qe2 {[%clk 0:00:04.5]} 31... Qd7
{[%clk 0:00:49]} 32. Bf1 {[%clk 0:00:04.6]} 32... Qg4 {[%clk 0:00:02.7]} 33.
Qxd3 {[%clk 0:00:04.6]} 33... Qxg3 {[%clk 0:00:02.8]} 34. Qb3+ {[%clk
0:00:04.3]} 34... Kh8 {[%clk 0:00:03.2]} 35. Qxb4 {[%clk 0:00:03.1]} 35... Qxf3+
{[%clk 0:00:03.8]} 36. Bg2 {[%clk 0:00:03.4]} 36... Qd1+ {[%clk 0:00:04.3]} 37.
Kh2 {[%clk 0:00:03.9]} 37... Qd8 {[%clk 0:00:04.8]} 38. Qe1 {[%clk 0:00:03.2]}
38... Qf6 {[%clk 0:00:05]} 39. Qg3 {[%clk 0:00:04.1]} 39... b5 {[%clk
0:00:04.5]} 40. Bf3 {[%clk 0:00:04.1]} 40... a5 {[%clk 0:00:04.6]} 41. Bg2
{[%clk 0:00:04.5]} 41... b4 {[%clk 0:00:05]} 42. Kh3 {[%clk 0:00:05]} 42... a4
{[%clk 0:00:05.4]} 43. Qg4 {[%clk 0:00:05.5]} 43... b3 {[%clk 0:00:05.3]} 44.
axb3 {[%clk 0:00:06.4]} 44... axb3 {[%clk 0:00:06.2]} 45. Qc8+ {[%clk
0:00:06.7]} 45... Kh7 {[%clk 0:00:06.8]} 46. Be4+ {[%clk 0:00:07.2]} 46... g6
{[%clk 0:00:07.4]} 47. Qb7+ {[%clk 0:00:07.5]} 47... Kg8 {[%clk 0:00:06.1]} 48.
Qxb3+ {[%clk 0:00:07.9]} 48... Kg7 {[%clk 0:00:06.7]} 49. Qb7+ {[%clk
0:00:08.2]} 49... Kf8 {[%clk 0:00:07.1]} 50. Qc8+ {[%clk 0:00:08.1]} 50... Ke7
{[%clk 0:00:07.6]} 51. Qc5+ {[%clk 0:00:07.7]} 51... Kd8 {[%clk 0:00:05.5]} 52.
Qd5+ {[%clk 0:00:07.6]} 52... Ke7 {[%clk 0:00:05]} 53. Qe5+ {[%clk 0:00:07.7]}
53... Qxe5 {[%clk 0:00:05.6]} 54. fxe5 {[%clk 0:00:08.6]} 54... Ke6 {[%clk
0:00:06.5]} 55. Bxg6 {[%clk 0:00:07.7]} 55... Kxe5 {[%clk 0:00:07.4]} 56. Kg4
{[%clk 0:00:08.3]} 56... Kf6 {[%clk 0:00:08.3]} 57. Kh5 {[%clk 0:00:08.9]} 57...
Kg7 {[%clk 0:00:09.2]} 58. Bf5 {[%clk 0:00:08.5]} 58... Kh8 {[%clk 0:00:10.1]}
59. Kg6 {[%clk 0:00:09.1]} 59... Kg8 {[%clk 0:00:11]} 60. h5 {[%clk 0:00:08.5]}
60... Kh8 {[%clk 0:00:11.9]} 61. Kf6 {[%clk 0:00:07.4]} 61... Kg8 {[%clk
0:00:12.8]} 62. Bg6 {[%clk 0:00:07.5]} 62... Kh8 {[%clk 0:00:13.7]} 63. Bf7
{[%clk 0:00:08]} 63... Kh7 {[%clk 0:00:12.1]} 64. Ke7 {[%clk 0:00:08.9]} 64...
Kh8 {[%clk 0:00:13]} 65. Kf8 {[%clk 0:00:07.1]} 65... Kh7 {[%clk 0:00:13.9]} 66.
Bg6+ {[%clk 0:00:06.5]} 66... Kh8 {[%clk 0:00:14.8]} 67. Be8 {[%clk 0:00:06.9]}
67... Kh7 {[%clk 0:00:15.7]} 68. Kf7 {[%clk 0:00:07.6]} 68... Kh8 {[%clk
0:00:16.6]} 69. Kg6 {[%clk 0:00:08.4]} 69... Kg8 {[%clk 0:00:16.8]} 70. Kxh6
{[%clk 0:00:09.3]} 70... Kh8 {[%clk 0:00:17.7]} 71. Bg6 {[%clk 0:00:08.7]} 71...
Kg8 {[%clk 0:00:18.6]} 72. Kg5 {[%clk 0:00:07.5]} 72... Kh8 {[%clk 0:00:19.5]}
73. h6 {[%clk 0:00:08.2]} 73... Kg8 {[%clk 0:00:20.4]} 74. Kf6 {[%clk
0:00:08.8]} 74... Kh8 {[%clk 0:00:21.3]} 75. Bf7 {[%clk 0:00:09.5]} 75... Kh7
{[%clk 0:00:21.6]} 76. Kg5 {[%clk 0:00:10.4]} 76... Kh8 {[%clk 0:00:22.5]} 77.
Kh5 {[%clk 0:00:11.3]} 77... Kh7 {[%clk 0:00:23.4]} 78. Kg5 {[%clk 0:00:11.7]}
78... Kh8 {[%clk 0:00:24.3]} 79. Kg6 {[%clk 0:00:12.6]} 1/2-1/2